Cogmind - Beta 13 @@@ ROGUE MODE // 2024.06.09 @ 16:35:31 Player: Kinga Result: Destroyed by Y-45 Defender with Beam Rifle Performance ------------- Evolutions (1) 500 Regions Visited (2) 400 Robots Destroyed (19) 95 Value Destroyed (478) 478 Prototype IDs (2) 40 Alien Tech Used (0) 0 Bonus (0) 0 TOTAL SCORE: 1513 Bonus ------- None Cogmind --------- Core Integrity 0/400 Matter 298/300 Energy 100/100 System Corruption 0% Temperature Cool (9) Movement Core (50) Location -9/Materials Parts ------- > --- POWER (1) -------- (None) > --- PROPULSION (2) --- (None) > --- UTILITY (3) ------ (None) > --- WEAPON (3) ------- (None) > --- INVENTORY (5) ---- Compact Wheel Light Armor Plating Light Armor Plating Peak State ------------ > --- POWER ------------ Ion Engine > --- PROPULSION ------- Light Treads Light Treads > --- UTILITY ---------- Improved Heat Sink Small Storage Unit Light Armor Plating > --- WEAPON ----------- Small Laser Particle Gun > --- INVENTORY -------- Light Ion Engine Light Treads Compact Wheel Light Armor Plating Light Armor Plating [Rating: 11] Favorites ----------- Power Ion Engine Engine Ion Engine Propulsion Light Treads Treads Light Treads Wheel Compact Wheel Utility Small Storage Unit Device Improved Heat Sink Storage Small Storage Unit Protection Light Armor Plating Weapon Small Laser Energy Gun Small Laser Ballistic Gun Light Assault Rifle Impact Weapon Mace Build | -11 -10 -9 ------- Run | Yrd Mat Mat Slots Evolved 2 | . . 2 Power . | . . . Propulsion . | . . . Utility 1 | . . 1 Weapon 1 | . . 1 Parts Attached 24 | 6 12 6 Power 4 | 1 1 2 Engine 4 | 1 1 2 Core . | . . . Reactor . | . . . Propulsion 7 | 2 4 1 Treads 6 | 2 3 1 Leg . | . . . Wheel 1 | . 1 . Hover . | . . . Flight . | . . . Utility 5 | 1 2 2 Device 1 | . . 1 Storage 1 | 1 . . Processor . | . . . Hackware . | . . . Protection 3 | . 2 1 Artifact . | . . . Weapon 8 | 2 5 1 Energy Gun 6 | 2 4 . Energy Cannon . | . . . Ballistic Gun 1 | . 1 . Ballistic Cannon . | . . . Launcher . | . . . Special Weapon . | . . . Impact Weapon 1 | . . 1 Slashing Weapon . | . . . Piercing Weapon . | . . . Special Melee Weapon . | . . . Unidentified Prototypes . | . . . Parts Lost 11 | . 4 7 Power 3 | . 1 2 Propulsion 2 | . 1 1 Utility 1 | . . 1 Weapon 5 | . 2 3 Highest Loss Streak 6 | . 3 6 To Critical Strikes . | . . . Average Slot Usage (%) 86 | . 94 71 Engine 12 | . 14 8 Treads 23 | . 26 17 Device 3 | . . 9 Storage 12 | . 14 9 Protection 9 | . 10 8 Energy Gun 23 | . 26 17 Naked Turns 13 | . . 13 Heaviest Build 18 | 11 17 18 Greatest Support 40 | 40 40 40 Greatest Overweight (x) . | . . . Average Overweight (x) . | . . . Largest Inventory Capacity 8 | 8 8 8 Average Capacity 7 | 6 8 7 Most Carried 8 | 4 8 6 Average Carried 4 | 1 5 4 Final Capacity 8 | 8 8 5 Final Carried 7 | 4 7 3 Class Distribution -------------------- 100% | Mutant Dominant Class ---------------- Mutant | -10/Materials Mutant | -9/Materials Resources | -11 -10 -9 ----------- Run | Yrd Mat Mat Matter Collected 384 | 217 147 20 Remotely . | . . . Salvage Created 631 | . 512 119 Parts 38 | . 34 4 Haulers Intercepted 1 | . 1 . Recyclers Shooed . | . . . Parts Field Recycled . | . . . Retrieved Matter . | . . . Parts Self-Destructed . | . . . Prevented . | . . . Kills | -11 -10 -9 ------- Run | Yrd Mat Mat Combat Hostiles Destroyed 13 | . 10 3 Guns 12 | . 10 2 Classes Destroyed 7 | . 6 1 Builder 2 | . 2 . Hauler 1 | . 1 . Operator 1 | . 1 . Watcher 2 | . 2 . Swarmer 2 | . 2 . Grunt 10 | . 8 2 Sentry 1 | . . 1 Best Kill Streak 5 | . 5 1 Combat Bots Only 4 | . 4 1 Max Kills in Single Turn 2 | . 2 1 Gunslinging . | . . . Exploded . | . . . Melee . | . . . Uniques/NPCs Destroyed . | . . . Combat | -11 -10 -9 -------- Run | Yrd Mat Mat Hostile Shots Fired 185 | . 76 109 Missed 46 | . 18 28 Damage Taken 1781 | . 635 1146 Core 516 | . 116 400 Absorbed by Shields . | . . . Core Remaining (%) 76 | 100 53 . Volleys Fired 64 | . 45 19 Largest 2 | . 2 2 Hottest 105 | . 105 105 Shots Fired 120 | . 88 32 Gun 120 | . 88 32 Cannon . | . . . Launcher . | . . . Special . | . . . Kinetic 4 | . 4 . Thermal 116 | . 84 32 Explosive . | . . . Electromagnetic . | . . . Robot Hit Streak 10 | . 7 10 Robot Miss Streak 5 | . 5 2 Penetration Max . | . . . Secondary Targets 1 | . 1 . Max Gunslinging Chain 1 | . 1 . Shots Hit Robots 76 | . 48 28 Core Hits 33 | . 26 7 Critical Kills . | . . . Critical Parts Destroyed 1 | . . 1 Critical Strikes 4 | . 2 2 Burn 3 | . 2 1 Smash 1 | . . 1 Melee Attacks 8 | . . 8 Impact 8 | . . 8 Slashing . | . . . Piercing . | . . . Sneak Attacks . | . . . Combat Hostiles . | . . . Follow-up Attacks . | . . . Damage Inflicted 1090 | . 660 430 Guns 977 | . 660 317 Cannons . | . . . Explosions . | . . . Melee 108 | . . 108 Ramming 5 | . . 5 Kinetic 23 | . 23 . Thermal 954 | . 637 317 Explosive . | . . . Electromagnetic . | . . . Impact 108 | . . 108 Slashing . | . . . Piercing . | . . . Highest Corruption . | . . . Average Corruption . | . . . Corruption Purged . | . . . Corruption Blocked . | . . . Overload Shots . | . . . Overflow Damage 27 | . . 27 Projectiles . | . . . Explosions . | . . . Melee 27 | . . 27 Knockbacks 2 | . . 2 Impact 1 | . . 1 Kinetic . | . . . Secondary 1 | . . 1 Self-Inflicted Damage 2 | . . 2 Shots . | . . . Rammed 2 | . . 2 Targets Rammed 2 | . . 2 Kicked . | . . . Crushed . | . . . Highest Temperature 457 | . 457 104 Average Temperature 150 | . 175 31 Received Heat Transfer 798 | . 297 501 Effects 9 | . 9 . Shutdowns 2 | . 2 . Energy Bleed 1 | . 1 . Interference 2 | . 2 . Damage (major) 4 | . 4 . Siege Activations . | . . . Robots Corrupted . | . . . Combat Hostiles . | . . . Parts Fried . | . . . Impact Corruptions 2 | . . 2 Robots Melted . | . . . Combat Hostiles . | . . . Parts Melted 5 | . 5 . Heat Transferred 2628 | . 1797 831 Parts Sabotaged . | . . . Parts Stolen . | . . . Parts Stripped . | . . . Power Chain Reactions . | . . . Alert | -11 -10 -9 ------- Run | Yrd Mat Mat Peak Influence 263 | . 263 117 Initial 26 | . . 26 Average 103 | . 147 61 Maximum Alert Level 1 | . 1 . Low Security (%) 77 | 100 60 100 Level 1 22 | . 39 . Level 2 . | . . . Level 3 . | . . . Level 4 . | . . . Level 5 . | . . . High Security . | . . . Max Security . | . . . Squads Dispatched 3 | . 2 1 Investigation 1 | . 1 . Extermination . | . . . Reinforcement 2 | . 1 1 Assault . | . . . Garrison . | . . . Intercept . | . . . Searches Triggered . | . . . Construction Impeded . | . . . Haulers Reinforced . | . . . Active Scanning Responses . | . . . Cargo Convoy Interrupts . | . . . Stealth | -11 -10 -9 --------- Run | Yrd Mat Mat Distress Signals 3 | . 2 1 Communications Jammed . | . . . Distress Signals . | . . . Times Spotted 28 | . 20 8 Peak Tracking Total 6 | . 6 6 Tactical Retreats . | . . . Traps | -11 -10 -9 ------- Run | Yrd Mat Mat Traps Triggered 2 | . 2 . Indirectly . | . . . Trap Hack Attempts . | . . . Triggered . | . . . Disarmed . | . . . Reprogrammed . | . . . Reused . | . . . Traps Extracted . | . . . Installed . | . . . Triggered . | . . . Machines | -11 -10 -9 ---------- Run | Yrd Mat Mat Machines Disabled . | . . . Max in Single Turn . | . . . Machines Repaired . | . . . Machines Dismantled . | . . . Machines Sabotaged . | . . . Overloaded Fab Kills . | . . . Hacking | -11 -10 -9 --------- Run | Yrd Mat Mat Machines Accessed 4 | . 3 1 Terminals 4 | . 3 1 Fabricators . | . . . Repair Stations . | . . . Recycling Units . | . . . Scanalyzers . | . . . Garrison Access . | . . . Total Hacks 8 | . 7 1 Successful 3 | . 2 1 Failed 5 | . 5 . Catastrophic . | . . . Database Lockouts . | . . . Manual 1 | . . 1 Terminals 8 | . 7 1 Fabricators . | . . . Repair Stations . | . . . Recycling Units . | . . . Scanalyzers . | . . . Garrison Access . | . . . Terminal Hacks 3 | . 2 1 Prototype ID Bank 1 | . . 1 Branch Access Points 1 | . 1 . Hauler Manifests 1 | . 1 . Fabricator Hacks . | . . . Repair Station Hacks . | . . . Recycling Unit Hacks . | . . . Scanalyzer . | . . . Garrison Access Hacks . | . . . Unauthorized Hacks . | . . . Terminals . | . . . Fabricators . | . . . Repair Stations . | . . . Recycling Units . | . . . Scanalyzers . | . . . Garrison Access . | . . . Data Cores Recovered . | . . . Used . | . . . Hacking Detections 3 | . 2 1 Full Trace Events . | . . . Feedback Events . | . . . Feedback Blocked . | . . . Robot Schematics Acquired . | . . . Robots Built . | . . . Authchips . | . . . Time . | . . . Total Robot Build Rating . | . . . Part Schematics Acquired . | . . . Parts Built . | . . . Authchips . | . . . Time . | . . . Total Part Build Rating . | . . . Parts Repaired . | . . . Time . | . . . Parts Recycled . | . . . Recycled Matter . | . . . Retrieved Matter . | . . . Retrieved Components . | . . . Parts Scanalyzed . | . . . Part Schematics Acquired . | . . . Parts Damaged . | . . . Bothacking | -11 -10 -9 ------------ Run | Yrd Mat Mat Used RIF Installer . | . . . Robots Hacked . | . . . Non-combat . | . . . Combat . | . . . Robot Hacks Applied . | . . . Relay Couplers Released . | . . . Fabnet Peak Effective % . | . . . Robots Rewired . | . . . Allies Hacked . | . . . Hacks Repelled . | . . . Allies | -11 -10 -9 -------- Run | Yrd Mat Mat Total Allies . | . . . Largest Group . | . . . Highest-Rated Group . | . . . Highest-Rated Ally . | . . . Total Orders . | . . . Ally Attacks . | . . . Total Damage . | . . . Kills . | . . . Allies Corrupted . | . . . Allies Melted . | . . . Intel | -11 -10 -9 ------- Run | Yrd Mat Mat Robot Analysis Total . | . . . Derelict Logs Recovered . | . . . Drone Launches . | . . . Drone Recoveries . | . . . Exploration | -11 -10 -9 ------------- Run | Yrd Mat Mat Turns Passed 748 | 91 431 226 Spaces Moved 341 | 51 175 115 Core 39 | 2 . 37 Treads 296 | 49 169 78 Legs . | . . . Wheels 6 | . 6 . Hover . | . . . Flight . | . . . Fastest Speed 50 | 50 100 50 Average Speed 146 | 155 157 124 Slowest Speed 160 | 160 160 160 Overloaded Moves . | . . . Propulsion Burnouts . | . . . Robots Hopped . | . . . Cave-ins Triggered . | . . . Exploration Rate (%) 23 | 6 45 19 Regions Visited 2 Branch Regions . Pre-discovered Areas . | . . . Known Exits Taken . | . . . Unknown Exits Taken 2 | 1 1 . Scrap Searched . | . . . Spaces Dug . | . . . Terrain Destroyed . | . . . Melee . | . . . Projectile . | . . . AOE . | . . . Terrain Rammed . | . . . Walls Destroyed . | . . . Machines Disabled . | . . . Actions | -11 -10 -9 --------- Run | Yrd Mat Mat Total 451 | 60 240 151 Wait 1 | . 1 . Move 339 | 50 174 115 Hop . | . . . Pick Up 10 | 4 6 . Fast Attach 12 | 6 4 2 Attach 9 | . 5 4 Detach . | . . . Swap 3 | . 3 . Drop 3 | . 2 1 Fire 64 | . 45 19 Melee 8 | . . 8 Ram 2 | . . 2 Kick . | . . . Crush . | . . . Escape Stasis . | . . . Rewire . | . . . Trap . | . . . Miscellaneous . | . . . Route ------- -11/Scrapyard -10/Materials (discovered 2 exits: *Mat / Min) -9/Materials History --------- Turn | Location | Event 22 | -11/Scrapyard | Discovered new exit (range 15) 92 | -11/Scrapyard | Entered Materials 332 | -10/Materials | Identified exit to Mines 350 | -10/Materials | Lost 3 parts (1n2w) 363 | -10/Materials | Build established: Mutant 506 | -10/Materials | Discovered new exit (range 10) 523 | -10/Materials | Entered another Materials area 523 | -9/Materials | Evolved 2 slots: Utility x1, Weapon x1 705 | -9/Materials | Released all parts (5) 724 | -9/Materials | Core integrity fell below 50% 735 | -9/Materials | Lost 6 parts (2p1n1u2w) 741 | -9/Materials | Core integrity fell below 20% 749 | -9/Materials | Destroyed by Y-45 Defender with Beam Rifle Last Messages --------------- 00705_ Released Lgt. Ion Engine. 00707_ R-06 Scavenger collects Aluminum Leg. 00716_ Acquired Mace. 00724_ Destroyed Aluminum Leg. 00724_ G-34 Mercenary system corrupted by crushing effect. 00724_ G-34 Mercenary knocked back. 00725_ G-34 Mercenary system terminally corrupted. 00728_ Critical hit (Burn: +37). 00734_ U-05 Engineer lays Concrete. 00740_ Critical hit (Burn: +37). 00741_ U-05 Engineer lays Concrete. 00742_ G-34 Mercenary suffers critical hit (Smash). 00742_ Destroyed Ion Engine. 00742_ G-34 Mercenary system corrupted by crushing effect. 00743_ U-05 Engineer lays Concrete. 00747_ Mace destroyed. 00747_ Slammed into G-34 Mercenary. 00747_ U-05 Engineer lays Concrete. 00748_ Slammed into G-34 Mercenary. 00748_ U-05 Engineer lays Concrete. Map ----- +----------------------------------------------------+ | | | | | | | | | | | | | | | ?????????????????????????????????????????????????? | | ?????????????????????????????????????????????????? | | ?????????????????????????????????????????????????? | | ?????????????????????????????????????????????????? | | ?????????????????????????????????????????????????? | | ?????????????????????????????????????????????????? | | ?????????????????????????????????????????????????? | | ?????????????????????????????????##########??????? | | ?????????????????????????????????# "" ???????? | | ?????????????????????????????????# ""S #??????? | | ?????????????????????????????????# "" #??????? | | ?????????????????????????? ????#?# #??????? | | ?????????????????????????? ?"" #?# #??????? | | ?????????????????????????? ?"" #?# """ !#??????? | | ?????????????????????????? """ ??# """ #??????? | | ?????????????????????????? """???# """ #??????? | | ?????????????????????????? ????# #?? ??? | | ?????????????????????#+###g##########+####### ???? | | ?????????????????????# @ | | ?????????????????????# o #? | | ????????#######??????# Y g #? | | ????????# ?##### ##########t### ######? | | ????????# ?# ### ## #?????? | | ????????# # "# "Y" ## #?????? | | ????????# + "# """ ## #?????? | | ????????# ; # ?? ## ##????? | | ????????# ; ;"#+######+## #????? | | ????????# ; u ;"# #????? | | ????????# !;!=! = %! #????? | | ????????# =% % %=;## #????? | | ????????########## ;####### ## #????? | | ?????????????????# % ;# ??# ####+######?? | | ??????????????? # ][??+ + #?? | | ?????????????? + ][ ?# # """ """ #?? | | ????????????? # ] ?# # """ """ #?? | | ????????????### #### #### ## # # """ """ #?? | | ??????????????# ???# #??# ## # # #?? | | ??????????????#????#+#??? ## + # ??? | | ???????????????????? ??? ## ### # #?? | | ???????????????????? ??? ## ??# # #?? | | ????????????????????" ??? ## ?### ###########?? | | ????????????????????" ??? ## ?# #???###???? | | ????????????????????? ??? ?# ??# #? ?? | +----------------------------------------------------+ Best States ------------- Heat Dissipation 42 Energy Generation 10 Energy Capacity 250 Matter Stores 300 Matter Capacity 300 Sight Range 16 Terrain Scan Density 10 Armor Coverage 150 Evasion (%) 50 Recoil Reduction 2 Item Schematics ----------------- None Robot Schematics ------------------ None Fabricated ------------ Nothing Alien Tech Used ----------------- None Achievements -------------- None Challenges ------------ None Game ------ Seed TiamatFlakJammer Manual? 0 Play Time 00:07:08 Cumulative 51.7 hours Start 2024.06.09 @ 16:27:48 End 2024.06.09 @ 16:35:31 Sessions 1 Manual Loads 0 Difficulty Rogue Special Mode None Game No. 66 Rogue 64 Adventurer 0 Explorer 2 Win Type - Total 3 Types 2/0/0/1/0/0/0/0/0 Lore% 30 Gallery% 55 Achievement% 46 Wizard Run 0 Options --------- Layout 0 ASCII 0 Keyboard 0 Movement Numpad Keybinds 0 Fullscreen 2 Font 18/SmallcapsGlow Map View 76x50 Zoom Use 0% Tactical HUD 1 Map Filters NONE Filters NONE Steam 1 RUN: d82ac35c-2368-4eca-9e20-9432ed4db9a0